[Event "Titled Tuesday Blitz February 28 Early 2023"]
[White "Fiorito, Joaquin"]
[Black "Postny, Evgeny"]
[WhiteFideId "180173"]
[BlackFideId "2804344"]
[WhiteElo "2157"]
[BlackElo "2509"]
[Result "1-0"]
[Round "11"]
[TimeControl "180+2"]
[Date "2023.02.28"]
[WhiteClock "0:00:08"]
[BlackClock "0:00:03"]

1. d4 {[%clk 0:03:00]}  Nf6 {[%clk 0:02:50]} 2. Nc3 {[%clk 0:03:01]}  c5 {[%clk 0:02:46]} 3. d5 {[%clk 0:03:00]}  g6 {[%clk 0:02:46]} 4. e4 {[%clk 0:03:01]}  d6 {[%clk 0:02:47]} 5. Nf3 {[%clk 0:03:01]}  Bg7 {[%clk 0:02:47]} 6. Bc4 {[%clk 0:03:02]}  Bg4 {[%clk 0:02:47]} 7. h3 {[%clk 0:03:02]}  Bxf3 {[%clk 0:02:47]} 8. Qxf3 {[%clk 0:03:03]}  O-O {[%clk 0:02:47]} 9. O-O {[%clk 0:03:03]}  Na6 {[%clk 0:02:47]} 10. h4 {[%clk 0:03:01]}  h5 {[%clk 0:02:46]} 11. a4 {[%clk 0:02:57]}  Nb4 {[%clk 0:02:43]} 12. Qe2 {[%clk 0:02:57]}  Ng4 {[%clk 0:02:43]} 13. g3 {[%clk 0:02:36]}  Rb8 {[%clk 0:02:30]} 14. Bf4 {[%clk 0:02:32]}  Ne5 {[%clk 0:02:21]} 15. Nd1 {[%clk 0:02:20]}  Qc8 {[%clk 0:02:05]} 16. c3 {[%clk 0:02:17]}  Na6 {[%clk 0:02:03]} 17. Kg2 {[%clk 0:02:13]}  Nc7 {[%clk 0:02:03]} 18. Ne3 {[%clk 0:02:09]}  b6 {[%clk 0:02:03]} 19. Bxe5 {[%clk 0:01:53]}  Bxe5 {[%clk 0:02:02]} 20. Bb5 {[%clk 0:01:53]}  Ne8 {[%clk 0:01:39]} 21. Bc6 {[%clk 0:01:49]}  Bg7 {[%clk 0:01:37]} 22. Rac1 {[%clk 0:01:45]}  Nf6 {[%clk 0:01:37]} 23. f3 {[%clk 0:01:39]}  Bh6 {[%clk 0:01:30]} 24. b4 {[%clk 0:01:38]}  Nd7 {[%clk 0:01:15]} 25. f4 {[%clk 0:01:34]}  Nf6 {[%clk 0:01:10]} 26. e5 {[%clk 0:01:25]}  dxe5 {[%clk 0:01:05]} 27. fxe5 {[%clk 0:01:25]}  Ng4 {[%clk 0:01:06]} 28. Nxg4 {[%clk 0:01:13]}  Bxc1 {[%clk 0:01:05]} 29. Nh2 {[%clk 0:01:07]}  Bh6 {[%clk 0:01:05]} 30. b5 {[%clk 0:01:05]}  Qc7 {[%clk 0:00:51]} 31. Qe4 {[%clk 0:01:04]}  f5 {[%clk 0:00:46]} 32. exf6 {[%clk 0:01:01]}  exf6 {[%clk 0:00:39]} 33. Qxg6+ {[%clk 0:00:59]}  Qg7 {[%clk 0:00:39]} 34. Qxh5 {[%clk 0:00:57]}  f5 {[%clk 0:00:34]} 35. d6 {[%clk 0:00:46]}  Rf6 {[%clk 0:00:20]} 36. d7 {[%clk 0:00:44]}  Rd6 {[%clk 0:00:19]} 37. Qxf5 {[%clk 0:00:41]}  Rd2+ {[%clk 0:00:14]} 38. Kh3 {[%clk 0:00:41]}  Rf8 {[%clk 0:00:12]} 39. Qe6+ {[%clk 0:00:39]}  Kh8 {[%clk 0:00:11]} 40. Rxf8+ {[%clk 0:00:38]}  Qxf8 {[%clk 0:00:12]} 41. Qe5+ {[%clk 0:00:17]}  Bg7 {[%clk 0:00:11]} 42. Qh5+ {[%clk 0:00:18]}  Bh6 {[%clk 0:00:12]} 43. Qg6 {[%clk 0:00:16]}  Rd6 {[%clk 0:00:10]} 44. Qe4 {[%clk 0:00:13]}  Bg7 {[%clk 0:00:10]} 45. Qe2 {[%clk 0:00:11]}  Kg8 {[%clk 0:00:08]} 46. Ng4 {[%clk 0:00:11]}  Kh8 {[%clk 0:00:07]} 47. Qe8 {[%clk 0:00:09]}  Rd2 {[%clk 0:00:05]} 48. Ne5 {[%clk 0:00:08]}  Kh7 {[%clk 0:00:03]} 49. Be4+ {[%clk 0:00:08]}  Kh8 {[%clk 0:00:03]} 50. Ng6+ {[%clk 0:00:08]} 1-0


[Site "https://www.chess.com"]

[Event "Titled Tuesday Blitz February 28 Early 2023"]
[White "Pakleza, Zbigniew"]
[Black "Sielecki, Christof"]
[WhiteFideId "1119290"]
[BlackFideId "4620437"]
[WhiteElo "2410"]
[BlackElo "2443"]
[Result "1/2-1/2"]
[Round "11"]
[TimeControl "180+2"]
[Date "2023.02.28"]
[WhiteClock "0:00:20"]
[BlackClock "0:00:18"]

1. d4 {[%clk 0:03:00]}  d5 {[%clk 0:02:58]} 2. Bf4 {[%clk 0:03:00]}  Nf6 {[%clk 0:02:58]} 3. e3 {[%clk 0:03:00]}  e6 {[%clk 0:02:59]} 4. Nd2 {[%clk 0:03:00]}  Bd6 {[%clk 0:02:59]} 5. Bg3 {[%clk 0:03:01]}  O-O {[%clk 0:02:59]} 6. Ngf3 {[%clk 0:03:01]}  c5 {[%clk 0:02:59]} 7. c3 {[%clk 0:03:02]}  Qc7 {[%clk 0:02:59]} 8. Be2 {[%clk 0:03:02]}  Nbd7 {[%clk 0:02:59]} 9. c4 {[%clk 0:03:03]}  Bxg3 {[%clk 0:02:48]} 10. hxg3 {[%clk 0:03:04]}  dxc4 {[%clk 0:02:30]} 11. Nxc4 {[%clk 0:03:05]}  Nb6 {[%clk 0:02:18]} 12. Rc1 {[%clk 0:02:57]}  Nxc4 {[%clk 0:02:11]} 13. Bxc4 {[%clk 0:02:58]}  Qa5+ {[%clk 0:01:58]} 14. Qd2 {[%clk 0:02:57]}  Qxd2+ {[%clk 0:01:58]} 15. Kxd2 {[%clk 0:02:58]}  Rd8 {[%clk 0:01:56]} 16. Ke2 {[%clk 0:02:56]}  cxd4 {[%clk 0:01:56]} 17. Nxd4 {[%clk 0:02:57]}  Bd7 {[%clk 0:01:53]} 18. Rhd1 {[%clk 0:02:46]}  Rac8 {[%clk 0:01:51]} 19. Bb5 {[%clk 0:02:36]}  Rxc1 {[%clk 0:01:46]} 20. Rxc1 {[%clk 0:02:35]}  Rc8 {[%clk 0:01:45]} 21. Rd1 {[%clk 0:02:17]}  Be8 {[%clk 0:01:35]} 22. Bxe8 {[%clk 0:02:13]}  Nxe8 {[%clk 0:01:36]} 23. f4 {[%clk 0:01:51]}  Kf8 {[%clk 0:01:33]} 24. g4 {[%clk 0:01:51]}  Ke7 {[%clk 0:01:32]} 25. g5 {[%clk 0:01:49]}  Nd6 {[%clk 0:01:26]} 26. g4 {[%clk 0:01:41]}  a6 {[%clk 0:01:06]} 27. Rh1 {[%clk 0:01:24]}  Rh8 {[%clk 0:00:50]} 28. Kd3 {[%clk 0:01:21]}  f6 {[%clk 0:00:37]} 29. g6 {[%clk 0:01:07]}  h6 {[%clk 0:00:35]} 30. Rc1 {[%clk 0:01:06]}  Rc8 {[%clk 0:00:31]} 31. Rxc8 {[%clk 0:01:06]}  Nxc8 {[%clk 0:00:32]} 32. f5 {[%clk 0:01:07]}  exf5 {[%clk 0:00:22]} 33. Nxf5+ {[%clk 0:01:02]}  Kf8 {[%clk 0:00:21]} 34. Kd4 {[%clk 0:01:02]}  Ne7 {[%clk 0:00:19]} 35. Nd6 {[%clk 0:00:52]}  b6 {[%clk 0:00:16]} 36. a4 {[%clk 0:00:37]}  Nxg6 {[%clk 0:00:15]} 37. Nc4 {[%clk 0:00:28]}  b5 {[%clk 0:00:14]} 38. axb5 {[%clk 0:00:29]}  axb5 {[%clk 0:00:14]} 39. Na3 {[%clk 0:00:26]}  Ne5 {[%clk 0:00:14]} 40. Nxb5 {[%clk 0:00:23]}  Nxg4 {[%clk 0:00:14]} 41. b4 {[%clk 0:00:24]}  h5 {[%clk 0:00:14]} 42. Nd6 {[%clk 0:00:21]}  Ne5 {[%clk 0:00:10]} 43. b5 {[%clk 0:00:20]}  h4 {[%clk 0:00:10]} 44. Kd5 {[%clk 0:00:16]}  h3 {[%clk 0:00:10]} 45. Nf5 {[%clk 0:00:15]}  g5 {[%clk 0:00:09]} 46. Ng3 {[%clk 0:00:16]}  g4 {[%clk 0:00:09]} 47. b6 {[%clk 0:00:13]}  Ke7 {[%clk 0:00:09]} 48. b7 {[%clk 0:00:12]}  Nd7 {[%clk 0:00:10]} 49. Ke4 {[%clk 0:00:11]}  Ke6 {[%clk 0:00:10]} 50. Kf4 {[%clk 0:00:11]}  Kd6 {[%clk 0:00:10]} 51. Kxg4 {[%clk 0:00:10]}  Kc7 {[%clk 0:00:10]} 52. Kxh3 {[%clk 0:00:09]}  Kxb7 {[%clk 0:00:11]} 53. Kg4 {[%clk 0:00:10]}  Kc6 {[%clk 0:00:11]} 54. Kf5 {[%clk 0:00:11]}  Kd5 {[%clk 0:00:11]} 55. Nh5 {[%clk 0:00:10]}  Nc5 {[%clk 0:00:09]} 56. Nxf6+ {[%clk 0:00:09]}  Kc4 {[%clk 0:00:10]} 57. Kf4 {[%clk 0:00:06]}  Kd3 {[%clk 0:00:10]} 58. Ng4 {[%clk 0:00:06]}  Kc4 {[%clk 0:00:10]} 59. Ne5+ {[%clk 0:00:05]}  Kd5 {[%clk 0:00:10]} 60. Nf3 {[%clk 0:00:05]}  Ke6 {[%clk 0:00:11]} 61. Nd2 {[%clk 0:00:04]}  Kd5 {[%clk 0:00:11]} 62. Nf3 {[%clk 0:00:04]}  Ke6 {[%clk 0:00:11]} 63. Kg3 {[%clk 0:00:03]}  Kf5 {[%clk 0:00:11]} 64. Kf2 {[%clk 0:00:03]}  Ke4 {[%clk 0:00:11]} 65. Ke2 {[%clk 0:00:03]}  Kd5 {[%clk 0:00:11]} 66. Nd2 {[%clk 0:00:04]}  Ke6 {[%clk 0:00:11]} 67. Kd1 {[%clk 0:00:04]}  Kd5 {[%clk 0:00:11]} 68. Kc2 {[%clk 0:00:05]}  Ke5 {[%clk 0:00:12]} 69. Kc3 {[%clk 0:00:05]}  Ne4+ {[%clk 0:00:11]} 70. Nxe4 {[%clk 0:00:06]}  Kxe4 {[%clk 0:00:12]} 71. Kd2 {[%clk 0:00:07]}  Ke5 {[%clk 0:00:12]} 72. Kd3 {[%clk 0:00:08]}  Kd5 {[%clk 0:00:13]} 73. e4+ {[%clk 0:00:09]}  Ke5 {[%clk 0:00:13]} 74. Ke3 {[%clk 0:00:09]}  Ke6 {[%clk 0:00:14]} 75. Kf4 {[%clk 0:00:10]}  Kf6 {[%clk 0:00:14]} 76. e5+ {[%clk 0:00:11]}  Ke6 {[%clk 0:00:15]} 77. Ke4 {[%clk 0:00:12]}  Ke7 {[%clk 0:00:15]} 78. Kd5 {[%clk 0:00:13]}  Kd7 {[%clk 0:00:16]} 79. e6+ {[%clk 0:00:14]}  Ke7 {[%clk 0:00:16]} 80. Ke5 {[%clk 0:00:15]}  Ke8 {[%clk 0:00:17]} 81. Kf6 {[%clk 0:00:16]}  Kf8 {[%clk 0:00:17]} 82. Kf5 {[%clk 0:00:17]}  Ke7 {[%clk 0:00:17]} 83. Ke5 {[%clk 0:00:18]}  Ke8 {[%clk 0:00:18]} 84. Kd6 {[%clk 0:00:18]}  Kd8 {[%clk 0:00:18]} 85. Kd5 {[%clk 0:00:19]}  Ke7 {[%clk 0:00:18]} 86. Ke5 {[%clk 0:00:20]} 1/2-1/2


[Site "https://www.chess.com"]

[Event "Titled Tuesday Blitz February 28 Early 2023"]
[White "Golubka, Petro"]
[Black "Poliakova, Varvara"]
[WhiteFideId "14114224"]
[BlackFideId "13518313"]
[WhiteElo "2404"]
[BlackElo "2075"]
[Result "0-1"]
[Round "11"]
[TimeControl "180+2"]
[Date "2023.02.28"]
[WhiteClock "0:02:47"]
[BlackClock "0:01:15"]

1. e3 {[%clk 0:02:59]}  f5 {[%clk 0:02:58]} 2. g4 {[%clk 0:02:57]}  fxg4 {[%clk 0:02:56]} 3. Qxg4 {[%clk 0:02:57]}  Nf6 {[%clk 0:02:56]} 4. Qg2 {[%clk 0:02:57]}  e5 {[%clk 0:02:53]} 5. c4 {[%clk 0:02:57]}  d5 {[%clk 0:02:52]} 6. cxd5 {[%clk 0:02:57]}  Qxd5 {[%clk 0:02:53]} 7. Nc3 {[%clk 0:02:56]}  Qxg2 {[%clk 0:02:49]} 8. Bxg2 {[%clk 0:02:56]}  c6 {[%clk 0:02:46]} 9. Nge2 {[%clk 0:02:56]}  Bd6 {[%clk 0:02:43]} 10. Ng3 {[%clk 0:02:56]}  O-O {[%clk 0:02:41]} 11. b3 {[%clk 0:02:56]}  a5 {[%clk 0:02:35]} 12. Bb2 {[%clk 0:02:57]}  Na6 {[%clk 0:02:33]} 13. O-O {[%clk 0:02:56]}  Nb4 {[%clk 0:02:32]} 14. Nce4 {[%clk 0:02:57]}  Bc7 {[%clk 0:02:27]} 15. f4 {[%clk 0:02:53]}  Nxe4 {[%clk 0:02:25]} 16. Nxe4 {[%clk 0:02:52]}  exf4 {[%clk 0:02:21]} 17. Bd4 {[%clk 0:02:52]}  Nc2 {[%clk 0:02:19]} 18. Bc5 {[%clk 0:02:52]}  Nxa1 {[%clk 0:02:17]} 19. Bxf8 {[%clk 0:02:52]}  Kxf8 {[%clk 0:02:15]} 20. Rxa1 {[%clk 0:02:51]}  fxe3 {[%clk 0:02:15]} 21. dxe3 {[%clk 0:02:52]}  Be5 {[%clk 0:02:09]} 22. Rf1+ {[%clk 0:02:52]}  Ke7 {[%clk 0:02:09]} 23. Ng5 {[%clk 0:02:52]}  Be6 {[%clk 0:02:01]} 24. Nxe6 {[%clk 0:02:52]}  Kxe6 {[%clk 0:02:02]} 25. Bh3+ {[%clk 0:02:52]}  Ke7 {[%clk 0:02:01]} 26. Rf5 {[%clk 0:02:53]}  Bf6 {[%clk 0:01:56]} 27. Kg2 {[%clk 0:02:53]}  a4 {[%clk 0:01:54]} 28. Kf3 {[%clk 0:02:52]}  axb3 {[%clk 0:01:52]} 29. axb3 {[%clk 0:02:53]}  Ra3 {[%clk 0:01:51]} 30. Rh5 {[%clk 0:02:53]}  h6 {[%clk 0:01:49]} 31. Bf5 {[%clk 0:02:53]}  Rxb3 {[%clk 0:01:48]} 32. Bc2 {[%clk 0:02:54]}  Rb2 {[%clk 0:01:47]} 33. Bd3 {[%clk 0:02:54]}  b5 {[%clk 0:01:41]} 34. Be4 {[%clk 0:02:53]}  Kd6 {[%clk 0:01:40]} 35. h3 {[%clk 0:02:53]}  b4 {[%clk 0:01:36]} 36. Ra5 {[%clk 0:02:53]}  b3 {[%clk 0:01:32]} 37. Ra6 {[%clk 0:02:53]}  Rc2 {[%clk 0:01:29]} 38. h4 {[%clk 0:02:52]}  Rc3 {[%clk 0:01:28]} 39. Ke2 {[%clk 0:02:52]}  b2 {[%clk 0:01:24]} 40. Kd2 {[%clk 0:02:51]}  Rc4 {[%clk 0:01:21]} 41. Bf5 {[%clk 0:02:51]}  Rb4 {[%clk 0:01:18]} 42. Bb1 {[%clk 0:02:50]}  Rxh4 {[%clk 0:01:16]} 43. Kd3 {[%clk 0:02:50]}  Rb4 {[%clk 0:01:16]} 44. e4 {[%clk 0:02:49]}  h5 {[%clk 0:01:15]} 45. Kc2 {[%clk 0:02:47]}  h4 {[%clk 0:01:15]} 46. Kd3 {[%clk 0:02:47]}  h3 {[%clk 0:01:15]} 47. Ke3 {[%clk 0:02:47]}  h2 {[%clk 0:01:15]} 0-1


[Site "https://www.chess.com"]

[Event "Titled Tuesday Blitz February 28 Early 2023"]
[White "Shapiro, Viktor"]
[Black "Iskusnyh, Sergei"]
[WhiteFideId "4175700"]
[BlackFideId "4120027"]
[WhiteElo "2132"]
[BlackElo "2492"]
[Result "0-1"]
[Round "11"]
[TimeControl "180+2"]
[Date "2023.02.28"]
[WhiteClock "0:00:08"]
[BlackClock "0:00:39"]

1. c4 {[%clk 0:03:00]}  e5 {[%clk 0:02:58]} 2. Nc3 {[%clk 0:03:00]}  Bb4 {[%clk 0:02:57]} 3. g3 {[%clk 0:03:00]}  Bxc3 {[%clk 0:02:54]} 4. bxc3 {[%clk 0:03:00]}  d6 {[%clk 0:02:50]} 5. d3 {[%clk 0:03:00]}  Nc6 {[%clk 0:02:42]} 6. f4 {[%clk 0:02:58]}  exf4 {[%clk 0:02:31]} 7. Bxf4 {[%clk 0:02:57]}  Nge7 {[%clk 0:02:30]} 8. Bg2 {[%clk 0:02:55]}  O-O {[%clk 0:02:29]} 9. Nf3 {[%clk 0:02:54]}  Ng6 {[%clk 0:02:28]} 10. Bg5 {[%clk 0:02:51]}  Nce7 {[%clk 0:02:24]} 11. O-O {[%clk 0:02:48]}  h6 {[%clk 0:02:23]} 12. Bd2 {[%clk 0:02:48]}  c5 {[%clk 0:02:20]} 13. Rb1 {[%clk 0:02:46]}  Rb8 {[%clk 0:02:19]} 14. Ne1 {[%clk 0:02:35]}  b6 {[%clk 0:02:16]} 15. Nc2 {[%clk 0:02:35]}  Bb7 {[%clk 0:02:13]} 16. Bxb7 {[%clk 0:02:17]}  Rxb7 {[%clk 0:02:12]} 17. e4 {[%clk 0:02:18]}  Ne5 {[%clk 0:02:08]} 18. Bf4 {[%clk 0:02:05]}  f5 {[%clk 0:01:55]} 19. exf5 {[%clk 0:01:54]}  Nxf5 {[%clk 0:01:53]} 20. Qh5 {[%clk 0:01:08]}  Nxd3 {[%clk 0:01:40]} 21. Rbd1 {[%clk 0:01:03]}  Nxf4 {[%clk 0:01:37]} 22. Rxf4 {[%clk 0:01:03]}  Rbf7 {[%clk 0:01:36]} 23. Rd5 {[%clk 0:00:47]}  Qd7 {[%clk 0:01:29]} 24. Qg4 {[%clk 0:00:32]}  Qe6 {[%clk 0:01:21]} 25. Re4 {[%clk 0:00:26]}  Qf6 {[%clk 0:01:01]} 26. Rf4 {[%clk 0:00:13]}  Qxc3 {[%clk 0:00:59]} 27. Rdxf5 {[%clk 0:00:13]}  Rxf5 {[%clk 0:00:50]} 28. Rxf5 {[%clk 0:00:13]}  Qxc2 {[%clk 0:00:50]} 29. Rxf8+ {[%clk 0:00:13]}  Kxf8 {[%clk 0:00:51]} 30. Qc8+ {[%clk 0:00:13]}  Kf7 {[%clk 0:00:51]} 31. Qd7+ {[%clk 0:00:13]}  Kg8 {[%clk 0:00:51]} 32. Qe6+ {[%clk 0:00:13]}  Kh7 {[%clk 0:00:50]} 33. Qxd6 {[%clk 0:00:13]}  Qb1+ {[%clk 0:00:50]} 34. Kg2 {[%clk 0:00:13]}  Qxa2+ {[%clk 0:00:51]} 35. Kh3 {[%clk 0:00:13]}  Qxc4 {[%clk 0:00:49]} 36. Qe7 {[%clk 0:00:14]}  Qd3 {[%clk 0:00:46]} 37. Qxa7 {[%clk 0:00:13]}  c4 {[%clk 0:00:46]} 38. Qxb6 {[%clk 0:00:13]}  c3 {[%clk 0:00:46]} 39. Qc6 {[%clk 0:00:12]}  Qf5+ {[%clk 0:00:44]} 40. Kg2 {[%clk 0:00:12]}  c2 {[%clk 0:00:44]} 41. h3 {[%clk 0:00:11]}  Qd3 {[%clk 0:00:43]} 42. g4 {[%clk 0:00:10]}  Qe2+ {[%clk 0:00:43]} 43. Kg3 {[%clk 0:00:10]}  Qe1+ {[%clk 0:00:43]} 44. Kf3 {[%clk 0:00:08]}  Qd1+ {[%clk 0:00:39]} 0-1


[Site "https://www.chess.com"]

[Event "Titled Tuesday Blitz February 28 Early 2023"]
[White "Ilinca Ilinca, Felix Antonio"]
[Black "Wagner, Dennis"]
[WhiteFideId "54764998"]
[BlackFideId "24650684"]
[WhiteElo "2031"]
[BlackElo "2470"]
[Result "1/2-1/2"]
[Round "11"]
[TimeControl "180+2"]
[Date "2023.02.28"]
[WhiteClock "0:00:56"]
[BlackClock "0:00:27"]

1. c4 {[%clk 0:03:00]}  c5 {[%clk 0:02:55]} 2. Nc3 {[%clk 0:02:59]}  Nf6 {[%clk 0:02:52]} 3. Nf3 {[%clk 0:02:59]}  Nc6 {[%clk 0:02:51]} 4. g3 {[%clk 0:02:56]}  d5 {[%clk 0:02:47]} 5. d4 {[%clk 0:02:54]}  e6 {[%clk 0:02:44]} 6. cxd5 {[%clk 0:02:52]}  exd5 {[%clk 0:02:44]} 7. Bg2 {[%clk 0:02:52]}  cxd4 {[%clk 0:02:44]} 8. Nxd4 {[%clk 0:02:51]}  Bc5 {[%clk 0:02:45]} 9. Nb3 {[%clk 0:02:44]}  Bb6 {[%clk 0:02:45]} 10. Nxd5 {[%clk 0:02:25]}  Be6 {[%clk 0:02:45]} 11. e4 {[%clk 0:02:23]}  Bg4 {[%clk 0:02:40]} 12. Bf3 {[%clk 0:02:11]}  Bxf3 {[%clk 0:01:53]} 13. Qxf3 {[%clk 0:02:08]}  Nxd5 {[%clk 0:01:54]} 14. exd5 {[%clk 0:02:06]}  Ne5 {[%clk 0:01:54]} 15. Qe4 {[%clk 0:02:02]}  O-O {[%clk 0:01:53]} 16. O-O {[%clk 0:01:59]}  Re8 {[%clk 0:01:42]} 17. Bd2 {[%clk 0:01:54]}  Qf6 {[%clk 0:01:27]} 18. Kg2 {[%clk 0:01:54]}  Ng6 {[%clk 0:01:20]} 19. Qf3 {[%clk 0:01:54]}  Qxf3+ {[%clk 0:01:01]} 20. Kxf3 {[%clk 0:01:55]}  Ne5+ {[%clk 0:01:01]} 21. Kg2 {[%clk 0:01:50]}  Nd3 {[%clk 0:00:52]} 22. Bc3 {[%clk 0:01:47]}  Rad8 {[%clk 0:00:52]} 23. Rad1 {[%clk 0:01:37]}  Rxd5 {[%clk 0:00:52]} 24. Nc1 {[%clk 0:01:34]}  Red8 {[%clk 0:00:47]} 25. Nxd3 {[%clk 0:01:29]}  Rxd3 {[%clk 0:00:48]} 26. Rxd3 {[%clk 0:01:29]}  Rxd3 {[%clk 0:00:49]} 27. Re1 {[%clk 0:01:29]}  h5 {[%clk 0:00:28]} 28. Re8+ {[%clk 0:01:26]}  Kh7 {[%clk 0:00:27]} 29. Re7 {[%clk 0:01:27]}  Kg6 {[%clk 0:00:28]} 30. Rxb7 {[%clk 0:01:20]}  Rd5 {[%clk 0:00:25]} 31. h4 {[%clk 0:01:16]}  f6 {[%clk 0:00:24]} 32. Re7 {[%clk 0:01:09]}  Rd3 {[%clk 0:00:21]} 33. a4 {[%clk 0:01:06]}  Rd5 {[%clk 0:00:21]} 34. Re4 {[%clk 0:01:01]}  Kf5 {[%clk 0:00:17]} 35. Rc4 {[%clk 0:01:00]}  a5 {[%clk 0:00:11]} 36. Rc6 {[%clk 0:00:58]}  Bd4 {[%clk 0:00:11]} 37. Bxd4 {[%clk 0:00:54]}  Rxd4 {[%clk 0:00:11]} 38. Rc5+ {[%clk 0:00:55]}  Kg6 {[%clk 0:00:12]} 39. Rxa5 {[%clk 0:00:55]}  Rb4 {[%clk 0:00:12]} 40. Rb5 {[%clk 0:00:52]}  Rxa4 {[%clk 0:00:13]} 41. b3 {[%clk 0:00:53]}  Ra2 {[%clk 0:00:13]} 42. Kf3 {[%clk 0:00:54]}  Rb2 {[%clk 0:00:14]} 43. Ke3 {[%clk 0:00:54]}  Kh6 {[%clk 0:00:12]} 44. f3 {[%clk 0:00:54]}  g5 {[%clk 0:00:13]} 45. hxg5+ {[%clk 0:00:52]}  fxg5 {[%clk 0:00:14]} 46. Rb6+ {[%clk 0:00:53]}  Kg7 {[%clk 0:00:14]} 47. Ke4 {[%clk 0:00:53]}  h4 {[%clk 0:00:14]} 48. gxh4 {[%clk 0:00:52]}  gxh4 {[%clk 0:00:15]} 49. Rb5 {[%clk 0:00:45]}  h3 {[%clk 0:00:15]} 50. Rh5 {[%clk 0:00:44]}  h2 {[%clk 0:00:15]} 51. Kf4 {[%clk 0:00:42]}  Kg6 {[%clk 0:00:15]} 52. Rh4 {[%clk 0:00:41]}  Rxb3 {[%clk 0:00:15]} 53. Rxh2 {[%clk 0:00:41]}  Rb4+ {[%clk 0:00:14]} 54. Ke5 {[%clk 0:00:40]}  Rb5+ {[%clk 0:00:15]} 55. Ke6 {[%clk 0:00:40]}  Rb6+ {[%clk 0:00:16]} 56. Ke5 {[%clk 0:00:41]}  Rb5+ {[%clk 0:00:16]} 57. Kd4 {[%clk 0:00:40]}  Rb4+ {[%clk 0:00:16]} 58. Ke3 {[%clk 0:00:39]}  Rb3+ {[%clk 0:00:17]} 59. Kf2 {[%clk 0:00:39]}  Rb2+ {[%clk 0:00:17]} 60. Kg3 {[%clk 0:00:39]}  Rxh2 {[%clk 0:00:14]} 61. Kxh2 {[%clk 0:00:40]}  Kg5 {[%clk 0:00:14]} 62. Kg1 {[%clk 0:00:41]}  Kf4 {[%clk 0:00:15]} 63. Kf2 {[%clk 0:00:41]}  Kf5 {[%clk 0:00:16]} 64. Kg3 {[%clk 0:00:41]}  Kg5 {[%clk 0:00:16]} 65. Kh2 {[%clk 0:00:41]}  Kf4 {[%clk 0:00:17]} 66. Kg2 {[%clk 0:00:42]}  Kf5 {[%clk 0:00:17]} 67. Kg3 {[%clk 0:00:43]}  Kg5 {[%clk 0:00:18]} 68. f4+ {[%clk 0:00:43]}  Kf5 {[%clk 0:00:18]} 69. Kf3 {[%clk 0:00:44]}  Kf6 {[%clk 0:00:19]} 70. Ke4 {[%clk 0:00:45]}  Ke6 {[%clk 0:00:20]} 71. f5+ {[%clk 0:00:46]}  Kf6 {[%clk 0:00:20]} 72. Kf4 {[%clk 0:00:47]}  Kf7 {[%clk 0:00:20]} 73. Kg5 {[%clk 0:00:48]}  Kg7 {[%clk 0:00:21]} 74. f6+ {[%clk 0:00:49]}  Kf7 {[%clk 0:00:22]} 75. Kf5 {[%clk 0:00:50]}  Kf8 {[%clk 0:00:22]} 76. Ke6 {[%clk 0:00:51]}  Ke8 {[%clk 0:00:23]} 77. Ke5 {[%clk 0:00:50]}  Kf7 {[%clk 0:00:24]} 78. Kf5 {[%clk 0:00:51]}  Kf8 {[%clk 0:00:24]} 79. Kg6 {[%clk 0:00:52]}  Kg8 {[%clk 0:00:25]} 80. Kh6 {[%clk 0:00:52]}  Kf7 {[%clk 0:00:26]} 81. Kg5 {[%clk 0:00:53]}  Kf8 {[%clk 0:00:26]} 82. Kg6 {[%clk 0:00:54]}  Kg8 {[%clk 0:00:27]} 83. f7+ {[%clk 0:00:55]}  Kf8 {[%clk 0:00:27]} 84. Kf6 {[%clk 0:00:56]} 1/2-1/2


[Site "https://www.chess.com"]

[Event "Titled Tuesday Blitz February 28 Early 2023"]
[White "Dehtiarov, Roman"]
[Black "Garakov, Mikhael"]
[WhiteFideId "14186640"]
[BlackFideId "4169034"]
[WhiteElo "2162"]
[BlackElo "2347"]
[Result "0-1"]
[Round "11"]
[TimeControl "180+2"]
[Date "2023.02.28"]
[WhiteClock "0:00:09"]
[BlackClock "0:00:09"]

1. e4 {[%clk 0:03:00]}  c5 {[%clk 0:02:45]} 2. Nc3 {[%clk 0:02:59]}  a6 {[%clk 0:02:45]} 3. f4 {[%clk 0:02:59]}  b5 {[%clk 0:02:45]} 4. Nf3 {[%clk 0:03:00]}  b4 {[%clk 0:02:44]} 5. Ne2 {[%clk 0:03:00]}  Bb7 {[%clk 0:02:42]} 6. d3 {[%clk 0:03:00]}  g6 {[%clk 0:02:39]} 7. g3 {[%clk 0:03:00]}  Bg7 {[%clk 0:02:39]} 8. Bg2 {[%clk 0:03:01]}  d6 {[%clk 0:02:38]} 9. O-O {[%clk 0:03:02]}  Nf6 {[%clk 0:02:38]} 10. h3 {[%clk 0:03:01]}  O-O {[%clk 0:02:36]} 11. Be3 {[%clk 0:03:01]}  Nc6 {[%clk 0:02:23]} 12. g4 {[%clk 0:03:00]}  Ne8 {[%clk 0:02:06]} 13. Rb1 {[%clk 0:02:59]}  a5 {[%clk 0:02:05]} 14. Ng3 {[%clk 0:02:58]}  Nc7 {[%clk 0:02:03]} 15. Qd2 {[%clk 0:02:58]}  a4 {[%clk 0:02:02]} 16. f5 {[%clk 0:02:57]}  a3 {[%clk 0:02:01]} 17. b3 {[%clk 0:02:58]}  Nb5 {[%clk 0:02:01]} 18. Bh6 {[%clk 0:02:53]}  Nc3 {[%clk 0:01:54]} 19. Bxg7 {[%clk 0:02:53]}  Kxg7 {[%clk 0:01:50]} 20. Ra1 {[%clk 0:02:33]}  Ne5 {[%clk 0:01:25]} 21. Rf2 {[%clk 0:01:45]}  f6 {[%clk 0:01:12]} 22. fxg6 {[%clk 0:01:34]}  hxg6 {[%clk 0:01:11]} 23. g5 {[%clk 0:01:33]}  Nxf3+ {[%clk 0:01:06]} 24. Rxf3 {[%clk 0:01:21]}  d5 {[%clk 0:00:41]} 25. gxf6+ {[%clk 0:00:48]}  exf6 {[%clk 0:00:40]} 26. exd5 {[%clk 0:00:31]}  Bxd5 {[%clk 0:00:30]} 27. Rf2 {[%clk 0:00:31]}  f5 {[%clk 0:00:27]} 28. Re1 {[%clk 0:00:25]}  Qh4 {[%clk 0:00:25]} 29. Bxd5 {[%clk 0:00:18]}  Nxd5 {[%clk 0:00:24]} 30. Rg2 {[%clk 0:00:19]}  Kh7 {[%clk 0:00:21]} 31. Nf1 {[%clk 0:00:04]}  Rae8 {[%clk 0:00:16]} 32. Rxe8 {[%clk 0:00:03]}  Rxe8 {[%clk 0:00:15]} 33. Re2 {[%clk 0:00:03]}  Qd4+ {[%clk 0:00:09]} 34. Kh1 {[%clk 0:00:02]}  Rxe2 {[%clk 0:00:08]} 35. Qxe2 {[%clk 0:00:03]}  Qf6 {[%clk 0:00:06]} 36. Qf3 {[%clk 0:00:03]}  Nc3 {[%clk 0:00:05]} 37. Ne3 {[%clk 0:00:02]}  Nxa2 {[%clk 0:00:05]} 38. Qb7+ {[%clk 0:00:03]}  Qg7 {[%clk 0:00:05]} 39. Qc6 {[%clk 0:00:03]}  Nc3 {[%clk 0:00:05]} 40. Qa6 {[%clk 0:00:03]}  a2 {[%clk 0:00:05]} 41. Nc4 {[%clk 0:00:02]}  Na4 {[%clk 0:00:05]} 42. Qxa4 {[%clk 0:00:02]}  a1=Q+ {[%clk 0:00:05]} 43. Qxa1 {[%clk 0:00:03]}  Qxa1+ {[%clk 0:00:06]} 44. Kg2 {[%clk 0:00:04]}  Qc3 {[%clk 0:00:06]} 45. Ne3 {[%clk 0:00:04]}  Qd2+ {[%clk 0:00:06]} 46. Kf3 {[%clk 0:00:05]}  g5 {[%clk 0:00:05]} 47. Nxf5 {[%clk 0:00:04]}  Qf4+ {[%clk 0:00:05]} 48. Ke2 {[%clk 0:00:04]}  Qxf5 {[%clk 0:00:06]} 49. Kd2 {[%clk 0:00:04]}  Qxh3 {[%clk 0:00:06]} 50. d4 {[%clk 0:00:05]}  Qg2+ {[%clk 0:00:05]} 51. Kd3 {[%clk 0:00:05]}  Qd5 {[%clk 0:00:06]} 52. c3 {[%clk 0:00:05]}  bxc3 {[%clk 0:00:06]} 53. Kxc3 {[%clk 0:00:05]}  Qxd4+ {[%clk 0:00:06]} 54. Kc2 {[%clk 0:00:06]}  g4 {[%clk 0:00:07]} 55. b4 {[%clk 0:00:05]}  cxb4 {[%clk 0:00:07]} 56. Kb3 {[%clk 0:00:05]}  g3 {[%clk 0:00:07]} 57. Ka4 {[%clk 0:00:06]}  g2 {[%clk 0:00:08]} 58. Kb5 {[%clk 0:00:07]}  g1=Q {[%clk 0:00:08]} 59. Ka4 {[%clk 0:00:08]}  b3+ {[%clk 0:00:08]} 60. Kxb3 {[%clk 0:00:09]}  Qge3+ {[%clk 0:00:07]} 61. Kc2 {[%clk 0:00:09]}  Qdd2+ {[%clk 0:00:08]} 62. Kb1 {[%clk 0:00:09]}  Qee1# {[%clk 0:00:09]} 0-1


[Site "https://www.chess.com"]